bitfinex/quotes_ETHUSD_20220308
["timestamp","ask_amount","ask_price","bid_price","bid_amount"]
[1646721597641,1.62659151,2504.2,2503.3,0.00306717]
[1646721598240,1.62659151,2504.2,2503.4,0.99885]
[1646721598641,1.62659151,2504.2,2503.3,0.99887]
[1646721598840,1.62659151,2504.2,2503.3,1.00189452]
[1646721599042,1.62659151,2504.2,2503.3,2.00079452]
[1646721599642,1.62659151,2504.2,2503.3,1.99777]
[1646721600047,1.62659151,2504.2,2503.3,2.00079452]
[1646721600247,1.62659151,2504.2,2503.6,1.17141902]
[1646721600444,1.62659151,2504.1,2503.6,1.17141902]
[1646721600645,1.62659151,2504.0,2503.6,1.47141902]
[1646721600889,2.34308174,2504.5,2503.6,1.47141902]
[1646721600890,1.62659151,2503.9,2503.6,1.47141902]
[1646721601091,0.3964,2504.5,2503.6,1.47141902]
[1646721601293,1.63135513,2504.4,2503.6,1.47141902]
[1646721601490,1.62646044,2504.3,2503.6,1.47141902]
[1646721602393,1.90667092,2504.6,2503.6,1.47141902]
[1646721602394,1.62646044,2504.2,2503.6,1.47141902]
[1646721602594,0.00489672,2504.4,2503.7,3.8964]
[1646721602793,1.62628763,2504.3,2503.7,5.7512]
[1646721602993,0.00489672,2504.4,2503.7,5.7512]
[1646721603193,0.00489672,2504.4,2503.7,6.74996]
[1646721603394,1.62622602,2504.3,2503.7,7.74869]
[1646721603597,1.1353,2504.8,2503.7,8.04869]
[1646721603795,0.0048968,2504.4,2504.0,1.11011344]
[1646721604095,0.0048968,2504.4,2504.0,1.41011344]
[1646721604536,0.3997,2505.0,2504.0,2.40873344]
[1646721604737,0.3997,2505.0,2504.0,7.40348344]
[1646721604738,1.62610526,2504.9,2504.0,7.40348344]
[1646721605037,0.00489711,2504.4,2504.0,7.70348344]
[1646721605237,0.00489711,2504.4,2504.0,8.40348344]
[1646721605438,0.00489711,2504.4,2504.0,4.90348344]
[1646721605841,0.3997,2505.0,2504.3,0.3964]
[1646721606042,0.00399022,2504.4,2504.3,1.4969]
[1646721606346,9.022e-05,2504.4,2504.3,5.38655251]
[1646721606741,0.01595912,2504.7,2504.5,0.3964]
[1646721606947,0.3994,2505.6,2504.5,0.3964]
[1646721606948,0.3994,2505.6,2504.8,0.3964]
[1646721607144,0.3994,2505.6,2504.7,5.5]
[1646721607145,0.3994,2505.6,2505.1,0.99811]
[1646721607443,0.3994,2505.6,2505.1,5.81641]
[1646721607444,0.04206333,2505.5,2505.1,5.81641]
[1646721607645,0.04206333,2505.5,2505.1,4.8183]
[1646721607846,0.04149491,2505.4,2505.1,6.2147]
[1646721608046,0.04149491,2505.4,2505.2,3.68791978]
[1646721608297,0.1995,2506.2,2505.3,0.3]
[1646721608488,1.62539872,2506.1,2505.3,4.1964]
[1646721608688,1.67087259,2506.1,2505.3,4.1964]
[1646721608891,1.62539872,2506.0,2505.3,5.1964]
[1646721609088,1.62539872,2506.0,2505.4,2.39232]
[1646721609287,0.04433703,2505.9,2505.7,1.18710442]
[1646721609488,0.04433703,2505.9,2505.7,0.45135402]
[1646721609692,0.0437686,2505.8,2505.7,0.45135402]
[1646721609892,0.0437686,2505.8,2505.7,1.44929402]
[1646721610093,0.0437686,2505.8,2505.6,1.3]
[1646721610292,0.0437686,2505.8,2505.6,0.3]
[1646721610495,0.04320018,2505.7,2505.6,0.3]
[1646721610992,0.04320018,2505.7,2505.4,2.62086596]
[1646721611197,0.04320018,2505.7,2505.4,0.3]
[1646721611402,0.04263176,2505.6,2505.4,1.0]
[1646721611591,0.04263176,2505.6,2505.3,0.3]
[1646721611791,0.04206333,2505.5,2505.3,0.3]
[1646721612243,0.04149491,2505.4,2505.3,0.3]
[1646721612442,0.04149491,2505.4,2505.3,1.16959473]
[1646721613043,0.04149491,2505.4,2505.2,0.99817]
[1646721613245,0.04149491,2505.4,2505.0,1.99621]
[1646721613446,0.04092648,2505.3,2505.0,1.99621]
[1646721613647,0.04092648,2505.3,2505.0,2.9944]
[1646721613846,0.00508779,2505.5,2505.0,6.4944]
[1646721613847,0.04035806,2505.2,2505.0,6.4944]
[1646721614050,0.00508779,2505.5,2505.2,5.4367]
[1646721614248,0.0203481,2505.9,2505.4,0.3964]
[1646721614446,2.879,2506.7,2505.6,1.99575]
[1646721614649,1.62524746,2506.6,2505.7,3.5]
[1646721614851,1.62524746,2506.6,2505.8,0.99789]
[1646721615047,1.62524746,2506.6,2506.2,0.88177439]
[1646721615448,0.00636128,2506.8,2506.2,0.88177439]
[1646721615649,1.62511371,2506.7,2506.2,0.88177439]
[1646721615896,0.00495778,2506.5,2506.2,1.18177439]
[1646721616697,0.00636128,2506.8,2506.2,1.18177439]
[1646721616894,0.00636128,2506.8,2506.3,0.99766]
[1646721617096,0.0049578,2506.5,2506.3,0.99766]
[1646721617295,0.0049578,2506.5,2506.4,0.3964]
[1646721617497,0.0049578,2506.5,2506.4,1.2931]
[1646721617698,0.0049578,2506.5,2506.4,1.5931]
[1646721617895,0.0049578,2506.5,2506.4,3.58798]
[1646721617896,5.78e-05,2506.5,2506.4,3.58798]
[1646721618097,0.00636128,2506.8,2506.5,0.0008]
[1646721618296,0.00636128,2506.8,2506.6,1.5465564]
[1646721618696,0.00636128,2506.8,2506.6,1.8465564]
[1646721619198,0.00636128,2506.8,2506.7,2.39104]
[1646721619645,0.0104608,2507.1,2506.9,0.3964]
[1646721619843,0.0104608,2507.1,2506.9,1.88447]
[1646721619844,8.336e-05,2507.1,2506.9,1.88447]
[1646721620043,8.336e-05,2507.1,2506.9,2.18447]
[1646721620245,8.336e-05,2507.1,2506.9,5.1757205]
[1646721620645,0.00404896,2507.1,2507.0,1.52522808]
[1646721620843,4.896e-05,2507.1,2507.0,2.52231808]
[1646721621045,4.896e-05,2507.1,2507.0,2.94569]
[1646721621244,4.896e-05,2507.1,2507.0,1.94569]
[1646721621446,4.896e-05,2507.1,2507.0,2.94569]
[1646721621643,0.00164608,2507.3,2507.0,2.94569]
[1646721621848,0.00164608,2507.3,2507.0,5.9373844]
[1646721622044,0.00164608,2507.3,2507.0,6.2373844]
[1646721622246,0.00164608,2507.3,2507.2,0.99729]
[1646721625494,0.00164608,2507.3,2507.2,1.94992283]
[1646721626897,4.608e-05,2507.3,2507.2,1.94992283]
[1646721627154,0.0138212,2507.5,2507.4,0.3964]
[1646721627155,9.216e-05,2507.5,2507.4,0.3964]
[1646721627354,0.01316864,2507.7,2507.6,3.8964]
[1646721627853,6.864e-05,2507.7,2507.6,5.1964]
[1646721628452,6.864e-05,2507.7,2507.6,1.3]
[1646721628653,6.864e-05,2507.7,2507.6,3.29375]
[1646721629453,6.864e-05,2507.7,2507.6,1.56137705]
[1646721629759,6.864e-05,2507.7,2507.6,0.56137705]
[1646721630158,6.864e-05,2507.7,2507.5,2.29696]
[1646721630356,6.864e-05,2507.7,2507.4,0.3]
[1646721630558,6.864e-05,2507.7,2507.3,7.9583]
[1646721631189,6.864e-05,2507.7,2507.4,0.99727]
[1646721631395,6.864e-05,2507.7,2507.5,3.98799]
[1646721631688,6.864e-05,2507.7,2507.5,5.28502]
[1646721631689,0.00508364,2507.6,2507.5,5.28502]
[1646721631888,0.00508364,2507.6,2507.5,6.58502]
[1646721632092,0.00508364,2507.6,2507.5,7.59570493]
[1646721632591,6.864e-05,2507.6,2507.5,7.59570493]
[1646721632791,6.864e-05,2507.6,2507.5,8.5789098]
[1646721633692,0.3988,2508.3,2507.7,0.9971]
[1646721633893,6.12097162,2508.4,2507.7,2.99129]
[1646721633894,0.02033144,2508.1,2507.7,2.99129]
[1646721634291,0.02033144,2508.1,2507.7,3.99129]
[1646721634537,0.02033144,2508.1,2507.7,2.99129]
[1646721634738,0.02033144,2508.1,2507.7,3.99129]
[1646721635041,5.0018272,2508.4,2507.7,2.99419]
[1646721635238,5.0018272,2508.4,2507.8,1.2971]
[1646721635239,0.004971,2508.0,2507.8,1.2971]
[1646721635441,0.004971,2508.0,2507.9,0.99707]
[1646721636043,5.02170822,2508.4,2507.9,0.99707]
[1646721636044,5.0018272,2508.4,2507.9,0.99707]
[1646721636243,5.0018272,2508.4,2508.0,0.99697]
[1646721636446,0.00497098,2508.1,2508.0,1.99395]
[1646721636844,0.00497098,2508.1,2508.0,3.98788]
[1646721637045,0.00497098,2508.1,2508.0,4.28788]
[1646721637245,5.0018272,2508.4,2508.0,5.28788]
[1646721637445,5.0018272,2508.4,2508.0,4.59091]
[1646721637649,0.00497094,2508.2,2508.0,4.29091]
[1646721638314,0.00497094,2508.2,2508.0,2.29393]
[1646721638503,5.95399747,2508.4,2507.9,1.99391]
[1646721638705,5.95399747,2508.4,2507.8,2.9942]
[1646721638903,5.95399747,2508.4,2507.4,1.99414]
[1646721638904,0.00487894,2508.2,2507.0,2.587]
[1646721639104,0.00487894,2508.2,2507.3,5.96441]
[1646721639305,0.00487894,2508.2,2507.3,0.99731]
[1646721639505,3.4967948,2508.2,2507.3,0.99731]
[1646721639709,3.4967948,2508.2,2506.9,1.99476]
[1646721639710,1.1874,2508.1,2506.9,1.99476]
[1646721639904,0.3964,2507.9,2506.6,1.99495]
[1646721640109,0.3964,2507.7,2506.6,1.99495]
[1646721640507,0.6964,2507.7,2506.6,1.99495]
[1646721640911,0.3964,2507.7,2506.7,1.99495]
[1646721641306,0.0048788,2507.5,2506.7,1.99495]
[1646721641508,0.0048788,2507.5,2506.8,0.99745]
[1646721641708,0.0048788,2507.5,2506.8,1.99496]
[1646721641908,0.0048788,2507.5,2506.8,0.94751]
[1646721642140,0.92482007,2507.5,2506.8,0.94751]
[1646721642341,0.92971233,2507.5,2506.8,0.94751]
[1646721642640,0.00489226,2507.5,2506.8,1.24751]
[1646721642844,0.00489226,2507.5,2506.8,2.2448619]
[1646721643040,0.00489226,2507.5,2506.8,5.2370019]
[1646721643241,0.00489226,2507.5,2506.8,4.9396219]
[1646721643441,0.1993,2508.1,2506.8,4.9396219]
[1646721643640,0.00489226,2507.5,2506.9,0.87700757]
[1646721643843,0.00489226,2507.5,2506.9,1.87436757]
[1646721644041,0.00489226,2507.5,2507.1,0.99728]
[1646721644443,0.00489226,2507.5,2507.2,1.99451]
[1646721644645,0.40850228,2508.3,2507.2,2.94421]
[1646721644844,0.0048925,2507.5,2507.2,2.94421]
[1646721645043,0.0048925,2507.5,2507.2,3.94421]
[1646721645448,0.0048925,2507.5,2507.4,0.99722]
[1646721645644,0.0048925,2507.5,2507.2,4.98895]
[1646721645891,1.01197161,2508.0,2507.2,4.98895]
[1646721646090,0.00489063,2507.5,2507.2,4.98895]
[1646721646491,0.00489063,2507.5,2507.1,0.99729]
[1646721646690,0.00489063,2507.5,2507.0,1.0]
[1646721646892,1.89937161,2508.0,2506.8,1.0]
[1646721647096,1.89937161,2508.0,2506.6,1.99497]
[1646721647097,1.89937161,2508.0,2506.6,2.99497]
[1646721647496,0.00396062,2507.5,2506.6,3.21015086]
[1646721647696,0.00396062,2507.5,2506.6,4.21015086]
[1646721647897,0.00396062,2507.5,2506.8,0.99751]
[1646721648297,1.33101036,2507.6,2506.8,0.99751]
[1646721648298,0.93461036,2507.6,2506.8,0.99751]
[1646721648498,0.00396023,2507.5,2506.8,0.99751]
[1646721649536,0.3964,2508.0,2506.8,0.99751]
[1646721649744,0.00508942,2507.5,2507.2,0.99729]
[1646721650143,0.00508942,2507.5,2507.1,5.28913]
[1646721650444,0.00508942,2507.5,2507.1,4.98913]
[1646721650645,1.15378698,2507.9,2507.1,2.99456]
[1646721650845,0.00508966,2507.5,2507.0,0.3]
[1646721651043,1.09342147,2507.5,2506.8,1.5081]
[1646721651244,1.09342147,2507.5,2506.8,1.0]
[1646721651445,1.09342147,2507.5,2506.7,0.3]
[1646721651646,1.09342147,2507.5,2506.5,5.7515]
[1646721651846,1.48473181,2507.5,2506.5,4.7515]
[1646721652043,1.48473181,2507.5,2506.4,1.99511]
[1646721652245,1.17721837,2507.1,2506.3,2.29360862]
[1646721652445,1.17721837,2507.1,2506.3,1.05930862]
[1646721652646,0.89248942,2507.5,2506.3,0.06163862]
[1646721652849,0.3964,2507.3,2506.3,0.06163862]
[1646721653300,0.3964,2507.3,2506.4,0.1994]
[1646721653800,1.12887811,2507.1,2506.4,0.1994]
[1646721654001,0.3964,2507.3,2506.4,0.1994]
[1646721654504,0.89236171,2507.5,2506.4,1.19707]
[1646721654704,2.02093116,2507.4,2506.4,1.19707]
[1646721654904,0.3964,2507.4,2506.4,1.19707]
[1646721655106,0.00496171,2507.5,2506.5,1.04596952]
[1646721655307,1.62452271,2507.4,2506.5,1.04596952]
[1646721655611,0.3,2507.5,2506.4,0.1994]
[1646721655810,0.30496179,2507.5,2506.5,0.9976]
[1646721656008,2.02089451,2507.4,2506.4,0.1994]
[1646721656211,0.3964,2507.3,2506.4,0.1994]
[1646721656410,0.40136179,2507.5,2506.4,0.1994]
[1646721656613,0.3964,2507.5,2506.6,0.96736208]
[1646721656810,1.05732295,2507.6,2506.8,0.99755]
[1646721657058,1.2082,2507.9,2506.8,4.49755]
[1646721657059,0.00496179,2507.5,2506.8,4.49755]
[1646721657248,0.00496179,2507.5,2506.9,0.99736]
[1646721657849,0.1993,2508.1,2507.6,1.17630448]
[1646721658054,0.55606027,2507.5,2507.3,4.9037]
[1646721658252,0.56095678,2507.5,2507.4,0.3964]
[1646721659054,0.55606027,2507.5,2507.4,2.33531753]
[1646721659255,0.55606027,2507.5,2507.4,0.99713]
[1646721662703,0.55606027,2507.5,2507.3,3.29426]
[1646721663001,0.55606027,2507.5,2507.3,1.99426]
[1646721663201,0.55606027,2507.5,2507.3,2.99426]
[1646721663604,0.55606027,2507.5,2507.3,1.99426]
[1646721663804,0.55606027,2507.5,2507.4,0.1993]
[1646721664203,0.56060514,2507.5,2507.4,0.1993]
[1646721665042,0.5954975,2507.5,2507.4,0.1993]
[1646721665441,0.00456841,2507.6,2507.5,4.5]
[1646721665639,0.00456841,2507.6,2507.4,3.8]
[1646721665839,0.00456841,2507.6,2507.4,5.1964]
[1646721666040,0.00456841,2507.6,2507.5,0.1993]
[1646721666243,5.0018272,2508.4,2507.5,0.1993]
[1646721666244,5.0018272,2508.4,2507.5,1.38442358]
[1646721666442,1.62384362,2508.3,2507.6,2.9912]
[1646721666643,0.01827084,2508.0,2507.8,0.99708]
[1646721667041,0.01827084,2508.0,2507.8,1.29708]
[1646721667446,5.0018272,2508.4,2507.8,1.29708]
[1646721667643,1.62381952,2508.3,2507.8,1.29708]
[1646721667845,0.00456825,2508.0,2507.8,1.29708]
[1646721668291,4.92206587,2508.4,2507.8,1.29708]
[1646721668492,1.62384176,2508.3,2507.8,1.29708]
[1646721668692,1.62384176,2508.3,2507.8,2.29418]
[1646721669094,1.62384176,2508.3,2507.8,2.59418]
[1646721669293,1.62384176,2508.3,2507.8,3.59418]
[1646721669896,1.62384176,2508.3,2507.8,3.29418]
[1646721670095,1.62384176,2508.3,2507.8,3.59418]
[1646721670497,1.62384176,2508.3,2507.8,3.29418]
[1646721670697,1.57384176,2508.3,2507.8,1.99418]
[1646721670901,1.57384176,2508.3,2507.5,0.1993]
[1646721671096,1.97024176,2508.3,2507.3,1.99439]
[1646721671301,0.3964,2508.3,2507.3,1.99439]
[1646721672347,1.16336912,2508.0,2507.3,2.29439]
[1646721672744,0.00508923,2508.1,2507.3,2.29439]
[1646721673548,5.32055007,2508.4,2507.3,2.29439]
[1646721673747,0.00508907,2508.1,2507.3,2.29439]
[1646721673951,0.00508907,2508.1,2507.3,6.69755742]
[1646721674152,0.00508907,2508.1,2507.4,0.1993]
[1646721674348,0.00508907,2508.1,2507.5,1.99432]
[1646721674548,0.00508907,2508.1,2507.5,6.49122]
[1646721674748,4.92414944,2508.4,2507.5,7.18762]
[1646721674749,4.90379562,2508.4,2507.5,7.18762]
[1646721674952,4.90379562,2508.4,2507.6,1.19636]
[1646721675149,0.00508915,2508.1,2507.7,3.5]
[1646721675348,0.00508915,2508.1,2507.8,3.08415534]
[1646721675548,0.00508915,2508.1,2507.8,3.48055534]
[1646721675791,0.00508915,2508.1,2507.8,4.48055534]
[1646721675993,4.92414976,2508.4,2507.8,6.47101984]
[1646721675994,4.90379562,2508.4,2507.8,6.47101984]
[1646721676193,4.90379562,2508.4,2507.8,6.47420534]
[1646721676194,0.00508946,2508.1,2507.8,6.47420534]
[1646721676395,0.00508946,2508.1,2507.8,6.77420534]
[1646721676797,0.00508946,2508.1,2507.8,6.37780534]
[1646721676994,4.90379562,2508.4,2507.8,6.37780534]
[1646721677198,4.90379562,2508.4,2507.8,5.2873]
[1646721677497,0.00486949,2508.1,2507.9,0.99693]
[1646721678299,4.90379562,2508.4,2507.9,0.99693]
[1646721678498,4.90379562,2508.4,2508.1,0.99694]
[1646721678700,4.90379562,2508.4,2508.1,1.99394]
[1646721679742,4.9086651,2508.4,2508.1,1.99394]
[1646721679943,4.9086651,2508.4,2508.0,3.2939]
[1646721680142,4.9086651,2508.4,2508.0,1.9939]
[1646721680344,4.9086651,2508.4,2507.7,0.99713]
[1646721680742,4.90379562,2508.4,2507.7,0.99713]
[1646721680942,0.00489955,2508.3,2507.7,0.99713]
[1646721681542,0.00489955,2508.3,2507.8,0.9971]
[1646721681944,6.09102211,2508.4,2507.8,0.9971]
[1646721682146,0.00489963,2508.1,2507.8,0.9971]
[1646721682347,0.00489963,2508.1,2507.8,1.99418]
[1646721682547,0.00489963,2508.1,2507.9,0.99701]
[1646721683146,4.90379562,2508.4,2507.9,0.99701]
[1646721683391,0.00489963,2508.1,2507.9,0.99701]
[1646721683993,0.00489963,2508.1,2507.6,3.98831]
[1646721684393,4.90379562,2508.4,2507.6,3.98831]
[1646721684592,0.0048953,2508.1,2507.7,0.99709]
[1646721685392,4.90379562,2508.4,2507.7,0.99709]
[1646721685795,0.00489514,2508.1,2507.7,0.99709]
[1646721686193,0.00489514,2508.1,2507.7,1.99419]
[1646721686794,4.90379562,2508.4,2507.7,0.99709]
[1646721687049,0.00489514,2508.1,2507.7,0.99709]
[1646721687844,4.90379562,2508.4,2507.7,0.99709]
[1646721688245,0.00489572,2508.1,2507.6,1.99408]
[1646721688446,0.00489572,2508.1,2507.4,0.1993]
[1646721688849,0.00489572,2508.1,2507.5,0.99719]
[1646721689045,4.92337613,2508.4,2507.5,0.99719]
[1646721689046,4.90379562,2508.4,2507.5,0.99719]
[1646721689445,0.89872091,2508.1,2507.5,0.99719]
[1646721689645,0.89872091,2508.1,2507.3,2.99428]
[1646721690145,0.89872091,2508.1,2507.5,1.99436]
[1646721690344,5.39479562,2508.4,2507.5,1.99436]
[1646721690546,0.003956,2508.1,2507.5,1.99436]
[1646721690992,0.003956,2508.1,2507.5,1.99294497]
[1646721691595,1.62419167,2508.1,2507.5,1.99294497]
[1646721691791,1.62419167,2508.1,2507.1,0.1993]
[1646721691792,2.02548822,2508.1,2507.1,0.1993]
[1646721691992,2.02059167,2508.0,2507.0,7.9299]
[1646721692193,1.62419167,2507.9,2507.0,7.8299]
[1646721692595,1.62419167,2507.9,2507.1,0.99734]
[1646721694397,1.62419167,2507.9,2507.3,0.99709]
[1646721694643,0.00489608,2508.1,2507.5,0.99712]
[1646721694840,0.00489608,2508.1,2507.5,1.29712]
[1646721695043,0.00489608,2508.1,2507.5,0.3]
[1646721695243,4.92337756,2508.4,2507.4,3.29423]
[1646721695244,4.90379562,2508.4,2507.4,3.29423]
[1646721695441,0.00495261,2508.1,2507.4,3.29423]
[1646721695640,0.00495261,2508.1,2507.4,2.29423]
[1646721695840,0.00495261,2508.1,2507.5,0.98060377]
[1646721696041,0.00495261,2508.1,2507.5,1.97772377]
[1646721696444,4.90379562,2508.4,2507.6,0.99707]
[1646721696645,0.00495261,2508.1,2507.6,0.99707]
[1646721696845,0.00495261,2508.1,2507.6,1.29707]
[1646721697449,0.00495261,2508.1,2507.6,6.19052]
[1646721697648,4.92360366,2508.4,2507.6,6.19052]
[1646721697649,4.90379562,2508.4,2507.6,2.69052]
[1646721697852,0.00495269,2508.1,2507.8,0.99706]
[1646721698293,0.00495269,2508.1,2507.9,1.17946794]
[1646721698495,0.00495269,2508.1,2507.9,4.67946794]
[1646721698693,4.92360398,2508.4,2508.0,3.5]
[1646721698694,4.90379562,2508.4,2508.0,3.5]
[1646721698898,4.90379562,2508.4,2508.1,0.99694]
[1646721699292,4.90379562,2508.4,2508.1,1.29694]
[1646721699693,4.90379562,2508.4,2508.2,1.99361]
[1646721699994,4.90379562,2508.4,2508.3,1.95544092]
[1646721700193,4.90868409,2508.4,2508.3,1.29679]
[1646721700595,4.90868409,2508.4,2508.2,2.99361]
[1646721700798,4.90868409,2508.4,2508.2,1.0]
[1646721701194,4.90868409,2508.4,2508.1,1.11307038]
[1646721701195,4.90379562,2508.4,2508.1,1.11307038]
[1646721701597,4.90379562,2508.4,2508.1,2.40998038]
[1646721701598,4.90868407,2508.4,2508.1,2.40998038]
[1646721702445,4.90379562,2508.4,2508.1,2.40998038]
[1646721702646,4.9086935,2508.4,2508.1,2.40998038]
[1646721703647,4.90379562,2508.4,2508.1,2.40998038]
[1646721703847,4.9086935,2508.4,2508.1,2.40998038]
[1646721704049,4.9086935,2508.4,2508.1,1.29691]
[1646721704248,4.9086935,2508.4,2508.1,0.3]
[1646721704449,4.9086935,2508.4,2508.0,1.3]
[1646721704649,4.9086935,2508.4,2508.0,0.3]
[1646721704849,4.90379562,2508.4,2507.9,1.29702]
[1646721705051,4.9086935,2508.4,2507.9,1.29702]
[1646721705450,1.62379267,2508.3,2507.9,0.99702]
[1646721706291,0.00489655,2508.2,2507.9,0.99702]
[1646721707195,4.90379562,2508.4,2507.9,0.99702]
[1646721707395,0.00489657,2508.2,2507.9,0.99702]
[1646721708495,4.90379562,2508.4,2507.9,0.99702]
[1646721708694,0.00489657,2508.2,2507.9,0.99702]
[1646721709553,4.90379562,2508.4,2507.9,0.99702]
[1646721709744,4.90379562,2508.4,2508.0,1.9937]
[1646721709945,0.00489256,2508.2,2508.0,1.9937]
[1646721710847,4.90379562,2508.4,2508.0,1.9937]
[1646721711244,0.00489254,2508.2,2508.0,1.9937]
[1646721712044,4.90379562,2508.4,2508.0,1.9937]
[1646721712251,0.00489254,2508.2,2508.0,1.9937]
[1646721713296,4.90379562,2508.4,2508.0,1.9937]
[1646721713500,0.00489679,2508.2,2508.0,1.9937]
[1646721714298,0.00489679,2508.2,2508.1,3.5]
[1646721714501,4.90379562,2508.4,2508.0,1.9937]
[1646721714702,0.00489679,2508.2,2508.0,1.9937]
[1646721715304,4.75869241,2508.4,2508.2,0.99687]
[1646721715703,4.75869241,2508.4,2508.2,1.29687]
[1646721717052,4.75869241,2508.4,2508.0,3.2937]
[1646721717245,4.76358905,2508.4,2508.0,3.2937]
[1646721717644,4.76358905,2508.4,2508.0,1.9937]
[1646721717845,4.76358905,2508.4,2507.8,2.19319]
[1646721718046,4.75869241,2508.4,2508.0,0.99696]
[1646721718446,0.00489668,2508.3,2508.0,0.99696]
[1646721719146,4.75869241,2508.4,2508.0,0.99696]
[1646721719548,0.0048966,2508.3,2508.0,0.99696]
[1646721719748,0.0048966,2508.3,2508.0,0.99699]
[1646721719948,0.0048966,2508.3,2507.8,2.19319]
[1646721720151,0.0048966,2508.3,2507.5,3.13259]
[1646721720152,1.62407848,2508.2,2507.5,3.13259]
[1646721720348,1.62407848,2508.2,2507.5,1.99409]
[1646721720548,5.15509241,2508.4,2507.5,1.99409]
[1646721720549,4.75869241,2508.4,2507.5,1.99409]
[1646721720996,0.00489591,2508.3,2507.5,1.99409]
[1646721721398,0.00489591,2508.3,2507.7,1.99391]
[1646721721596,4.75869241,2508.4,2507.7,2.29391]
[1646721721797,4.75869241,2508.4,2507.8,1.13020947]
[1646721721996,0.00489568,2508.3,2507.9,0.3964]
[1646721722200,0.00489568,2508.3,2507.8,2.12716947]
[1646721722801,4.75869241,2508.4,2507.8,2.12716947]
[1646721723000,0.00395345,2508.3,2507.8,2.52356947]
[1646721723201,0.00395345,2508.3,2507.8,1.99696]
[1646721723600,0.00395345,2508.3,2507.8,0.99696]
[1646721724000,4.75869241,2508.4,2507.8,0.99696]
[1646721724399,0.00489795,2508.3,2507.8,0.99696]
[1646721725243,4.75869241,2508.4,2507.8,0.99696]
[1646721725644,0.00469275,2508.3,2507.8,4.49696]
[1646721725844,0.00469275,2508.3,2507.8,7.95403866]
[1646721726244,0.00469275,2508.3,2507.9,0.97187866]
[1646721726446,4.75869241,2508.4,2508.0,4.49684]
[1646721726646,4.75869241,2508.4,2508.2,0.90653609]
[1646721726844,0.00469275,2508.3,2508.2,1.20653609]
[1646721727650,4.75869241,2508.4,2508.2,1.20653609]
[1646721727850,4.75869241,2508.4,2508.2,2.20330609]
[1646721728050,4.76338513,2508.4,2508.2,2.20330609]
[1646721728899,4.75869241,2508.4,2508.3,3.5]
[1646721729102,4.75869241,2508.4,2508.3,0.3]
[1646721729103,4.76359033,2508.4,2508.3,0.3]
[1646721729299,4.76359033,2508.4,2508.3,1.3]
[1646721729496,4.76359033,2508.4,2508.3,0.3]
[1646721729697,4.76359033,2508.4,2508.2,2.20330609]
[1646721729897,4.76359033,2508.4,2508.2,3.20330609]
[1646721730099,4.75869241,2508.4,2508.2,5.70330609]
[1646721730299,4.75869241,2508.4,2508.2,3.20330609]
[1646721731100,4.75869241,2508.4,2508.2,2.20330609]
[1646721731303,4.75869241,2508.4,2508.2,3.20330609]
[1646721731502,4.76359036,2508.4,2508.2,2.20330609]
[1646721731704,4.76359036,2508.4,2508.2,3.20330609]
[1646721731902,4.76359036,2508.4,2508.2,2.20330609]
[1646721732149,4.76359036,2508.4,2508.2,3.20330609]
[1646721732351,4.76359036,2508.4,2508.2,2.20330609]
[1646721732547,4.75869241,2508.4,2508.2,2.20330609]
[1646721732950,4.76359036,2508.4,2508.2,2.20330609]
[1646721733750,4.75869241,2508.4,2508.2,2.20330609]
[1646721733949,4.76359036,2508.4,2508.2,2.20330609]
[1646721734951,4.75869241,2508.4,2508.2,2.20330609]
[1646721735151,4.76359035,2508.4,2508.2,2.20330609]
[1646721735797,4.76359035,2508.4,2508.2,1.29677]
[1646721736203,4.75869241,2508.4,2508.2,1.29677]
[1646721736399,4.76359035,2508.4,2508.2,1.29677]
[1646721737405,4.75869241,2508.4,2508.2,1.29677]
[1646721737605,4.76359035,2508.4,2508.2,1.29677]
[1646721738606,4.75869241,2508.4,2508.2,1.29677]
[1646721738807,4.76359035,2508.4,2508.2,1.29677]
[1646721739648,4.75869241,2508.4,2508.2,1.29677]
[1646721739849,4.75869241,2508.4,2508.2,1.29688]
[1646721740049,4.76229714,2508.4,2508.2,1.29688]
[1646721740849,4.7573992,2508.4,2508.2,1.29688]
[1646721741250,4.76229714,2508.4,2508.2,1.29688]
[1646721742051,4.7573992,2508.4,2508.2,0.3]
[1646721742253,4.7573992,2508.4,2508.1,2.29354]
[1646721742450,4.76229715,2508.4,2508.1,2.29354]
[1646721743302,4.7573992,2508.4,2508.1,2.29354]
[1646721743503,4.76229716,2508.4,2508.1,2.29354]
[1646721744504,4.7573992,2508.4,2508.1,2.29354]
[1646721744808,4.76229716,2508.4,2508.1,2.29354]
[1646721745706,4.7573992,2508.4,2508.1,2.29354]
[1646721745907,4.76229717,2508.4,2508.1,2.29354]
[1646721746707,4.76229717,2508.4,2508.1,3.26541866]
[1646721746908,4.7573992,2508.4,2508.1,3.26541866]
[1646721747150,4.76229717,2508.4,2508.1,3.29354]
[1646721747355,4.76229717,2508.4,2508.1,2.29354]
[1646721747549,4.76229717,2508.4,2508.1,3.26541866]
[1646721747750,4.76229717,2508.4,2508.1,4.26541866]
[1646721748051,4.7573992,2508.4,2508.1,4.26541866]
[1646721748450,4.76229717,2508.4,2508.1,3.29354]
[1646721749249,4.7573992,2508.4,2508.1,3.29354]
[1646721749449,4.7573992,2508.4,2508.1,4.26541866]
[1646721749650,4.76229717,2508.4,2508.1,4.26541866]
[1646721750052,4.76229717,2508.4,2508.1,3.29354]
[1646721750450,4.7573992,2508.4,2508.1,3.29354]
[1646721750652,4.7573992,2508.4,2508.1,2.29354]
[1646721750899,4.76229717,2508.4,2508.1,2.29354]
[1646721751699,4.7573992,2508.4,2508.1,2.29354]
[1646721751901,4.7573992,2508.4,2508.2,2.23334807]
[1646721751904,0.00490677,2508.4,2508.2,2.23334807]
[1646721752105,2.437e-05,2508.4,2508.3,0.97187866]
[1646721752306,2.437e-05,2508.4,2508.3,1.31106751]
[1646721752904,2.437e-05,2508.4,2508.3,2.73934647]
[1646721753305,2.437e-05,2508.4,2508.3,3.73934647]
[1646721753606,2.437e-05,2508.4,2508.3,2.73934647]
[1646721753805,2.437e-05,2508.4,2508.3,2.31106751]
[1646721754010,2.437e-05,2508.4,2508.3,1.31106751]
[1646721754206,2.437e-05,2508.4,2508.3,14.81934647]
[1646721754405,0.0134234,2508.7,2508.4,2.98927]
[1646721754406,4.993e-05,2508.5,2508.4,2.98927]
[1646721754647,4.993e-05,2508.5,2508.4,3.54409596]
[1646721754848,0.0134234,2508.7,2508.5,5.5]
[1646721755052,2.34e-05,2508.7,2508.6,0.97012413]